fUST/lending_fUST_20240928
["ID","MTS","AMOUNT","RATE_DAILY","PERIOD"]
[339370739,1727500034544,-250.0,0.00032728,2]
[339370740,1727500034566,-174.91711753,0.00032817,60]
[339370741,1727500034589,-230.6597806,0.00033,2]
[339370742,1727500034611,-400.0,0.00033627,2]
[339370743,1727500034633,-400.0,0.00033627,2]
[339370744,1727500034655,-377.2,0.00033791,7]
[339370745,1727500034677,-171.45166629,0.00033901,37]
[339370746,1727500034700,-191.375531,0.00034003,2]
[339370747,1727500034723,-216.189446,0.0003454,2]
[339370748,1727500034745,-216.189446,0.00034631,2]
[339370749,1727500034768,-216.189446,0.00034722,2]
[339370750,1727500034793,-216.189446,0.00034814,2]
[339370751,1727500034820,-216.189446,0.00034905,2]
[339370752,1727500034843,-282.745632,0.00034932,2]
[339370753,1727500034865,-216.189446,0.00034996,2]
[339370754,1727500034886,-275.30304254,0.00035014,120]
[339370755,1727500034908,-377.2,0.00035412,15]
[339370756,1727500034931,-200.0,0.00035616,2]
[339370757,1727500034956,-213.8675032,0.00035616,120]
[339370758,1727500034977,-380.0,0.00035616,2]
[339370759,1727500035002,-200.0,0.00036107,2]
[339370760,1727500035028,-304.3537636,0.00036959,2]
[339370761,1727500035049,-377.2,0.00037034,15]
[339370762,1727500035074,-185.5884847,0.000374,2]
[339370763,1727500035099,-193.16479581,0.00037419,2]
[339370764,1727500035120,-470.94061769,0.00037489,3]
[339370765,1727500041137,-250.0,0.00033007,2]
[339370766,1727500041162,-250.0,0.00033098,2]
[339370767,1727500041185,-250.0,0.00033188,2]
[339370768,1727500041213,-250.0,0.00033279,2]
[339370769,1727500041235,-250.0,0.00033369,2]
[339370770,1727500041262,-250.0,0.0003346,2]
[339370771,1727500041286,-250.0,0.0003355,2]
[339370772,1727500041310,-250.0,0.00033641,2]
[339370773,1727500041333,-250.0,0.00033731,2]
[339370774,1727500041358,-250.0,0.00033822,2]
[339370775,1727500041383,-250.0,0.00033912,2]
[339370776,1727500041409,-250.0,0.00034003,2]
[339370777,1727500041432,-121.82382821,0.00034094,2]
[339370784,1727500157120,-160.383075,0.00033113,2]
[339370785,1727500159131,-128.17617179,0.00034094,2]
[339370786,1727500159154,-250.0,0.00034184,2]
[339370787,1727500159177,-250.0,0.00034275,2]
[339370788,1727500159200,-250.0,0.00034365,2]
[339370789,1727500159224,-250.0,0.00034456,2]
[339370790,1727500198614,170.934266,0.00031779,30]
[339370792,1727500232335,-71.87330609,0.00034549,14]
[339370839,1727500238630,-60.18452052,0.00034549,14]
[339370840,1727500238644,-18.94217339,0.00034549,14]
[339370841,1727500238654,-556.7654541,0.0003737,2]
[339370842,1727500238664,-1000.0,0.0003739,2]
[339370843,1727500238673,-500.0,0.00037468,15]
[339370844,1727500238684,-200.53596889,0.00037468,15]
[339370845,1727500238694,-344.66451405,0.00037468,15]
[339370846,1727500238707,-155.33548595,0.00037468,15]
[339370847,1727500238717,-179.66229496,0.00037468,15]
[339370848,1727500238728,-188.87092711,0.00037469,60]
[339370849,1727500238738,-5421.98230566,0.00037469,7]
[339370858,1727500243474,-1299.39999999,0.00037459,3]
[339370864,1727500246692,-942.05000001,0.00037459,3]
[339370865,1727500246702,-265.74464341,0.00037469,7]
[339370867,1727500309598,151.0,0.00034011,7]
[339370868,1727500309712,151.0,0.00032433,6]
[339370869,1727500392920,3000.0,0.00021,2]
[339370870,1727500393294,3000.0,0.0002101,2]
[339370871,1727500393597,170.35005076,0.0002102,2]
[339370872,1727500393622,2829.64994924,0.0002102,2]
[339370873,1727500393916,3000.0,0.0002103,2]
[339370874,1727500394515,3000.0,0.0002104,2]
[339370875,1727500394872,3000.0,0.0002105,2]
[339370876,1727500395178,3000.0,0.0002106,2]
[339370877,1727500395643,5850.0,0.0002107,2]
[339370882,1727500908642,4172.9970701,0.00023,2]
[339370884,1727500992697,25000.0,0.00022,2]
[339370885,1727500993220,150.0,0.00021,2]
[339370887,1727501079177,350.0,0.00021,2]
[339370888,1727501155146,-153.73,0.000266,31]
[339370889,1727501155173,-153.73,0.000266,31]
[339370890,1727501155200,-153.73,0.000266,31]
[339370891,1727501155227,-153.73,0.000266,31]
[339370892,1727501155261,-153.73,0.000266,31]
[339370893,1727501155288,-153.73,0.000266,31]
[339370894,1727501155314,-153.73,0.000266,31]
[339370895,1727501155336,-300.0,0.00026846,2]
[339370896,1727501155360,-300.0,0.00026846,2]
[339370897,1727501155393,-300.0,0.00029028,2]
[339370898,1727501155425,-153.73,0.000301,31]
[339370899,1727501155452,-153.73,0.000301,31]
[339370900,1727501155478,-153.73,0.000301,31]
[339370901,1727501155505,-153.73,0.000301,31]
[339370902,1727501155532,-153.73,0.000301,31]
[339370903,1727501155560,-153.73,0.000301,31]
[339370904,1727501155586,-153.73,0.000301,31]
[339370905,1727501155612,-67.04174735,0.000301,31]
[339370907,1727501234100,-228.74909923,0.00030099,2]
[339370908,1727501251106,-112.25090077,0.00030099,2]
[339370909,1727501251133,-86.68825265,0.000301,31]
[339370910,1727501251166,-153.73,0.000301,31]
[339370911,1727501251190,-153.73,0.000301,31]
[339370912,1727501251217,-153.73,0.000301,31]
[339370913,1727501251243,-153.73,0.000301,31]
[339370914,1727501251269,-153.73,0.000301,31]
[339370915,1727501251297,-153.73,0.000301,31]
[339370916,1727501251318,-160.0,0.00033,2]
[339370917,1727501251343,-168.0150828,0.00033386,2]
[339370918,1727501251372,-153.73,0.000337,31]
[339370919,1727501251397,-153.73,0.000337,31]
[339370920,1727501251423,-153.73,0.000337,31]
[339370921,1727501251447,-153.73,0.000337,31]
[339370922,1727501251472,-153.73,0.000337,31]
[339370923,1727501251495,-153.73,0.000337,31]
[339370924,1727501251519,-153.73,0.000337,31]
[339370925,1727501251543,-153.73,0.000337,31]
[339370926,1727501251568,-153.73,0.000337,31]
[339370927,1727501251592,-153.73,0.000337,31]
[339370928,1727501251618,-20.03114727,0.000337,31]
[339370929,1727501254136,-133.69885273,0.000337,31]
[339370930,1727501254168,-153.73,0.000337,31]
[339370931,1727501254196,-153.73,0.000337,31]
[339370932,1727501254228,-153.73,0.000337,31]
[339370933,1727501254251,-1003.752056,0.00033788,2]
[339370934,1727501254274,-161.0,0.0003445,120]
[339370935,1727501254297,-1003.752056,0.00034473,2]
[339370936,1727501254319,-282.675333,0.00034932,2]
[339370937,1727501254344,-5.75329069,0.00035158,2]
[339370939,1727501321317,150.12027231,0.0002,7]
[339371079,1727501438737,-2547.20648903,0.00034558,120]
[339371080,1727501438748,-566.46538402,0.00034558,120]
[339371081,1727501438757,-432.12887346,0.00034558,120]
[339371213,1727501443902,-67.87112654,0.00034558,120]
[339371214,1727501444002,-278.71351205,0.00035158,2]
[339371238,1727501446577,-719.28525326,0.00035158,2]
[339371240,1727501446589,-212.6743996,0.00035244,2]
[339371242,1727501446599,-166.112994,0.0003543,2]
[339371243,1727501446610,-157.91095603,0.000355,2]
[339371245,1727501446619,-166.112994,0.00035572,2]
[339371247,1727501446630,-151.0,0.00035596,15]
[339371249,1727501446641,-400.0,0.00035616,2]
[339371251,1727501446652,-166.112994,0.00035714,2]
[339371252,1727501446663,-166.112994,0.00035856,2]
[339371253,1727501446672,-166.112994,0.00035998,2]
[339371254,1727501446681,-500.00000004,0.00036,2]
[339371255,1727501446692,-166.112994,0.0003614,2]
[339371256,1727501446703,-166.112994,0.00036282,2]
[339371257,1727501446713,-166.112994,0.00036424,2]
[339371258,1727501446724,-161.0,0.0003656,120]
[339371259,1727501446734,-166.112994,0.00036566,2]
[339371260,1727501446744,-166.112994,0.00036708,2]
[339371261,1727501446755,-166.112994,0.0003685,2]
[339371262,1727501446764,-166.112994,0.00036992,2]
[339371263,1727501446775,-500.0,0.00037068,10]
[339371264,1727501446785,-166.112994,0.00037134,2]
[339371265,1727501446795,-151.0,0.00037172,15]
[339371266,1727501446805,-153.73,0.000372,31]
[339371267,1727501446816,-153.73,0.000372,31]
[339371268,1727501446825,-153.73,0.000372,31]
[339371269,1727501446834,-153.73,0.000372,31]
[339371270,1727501446844,-153.73,0.000372,31]
[339371271,1727501446853,-153.73,0.000372,31]
[339371272,1727501446863,-153.73,0.000372,31]
[339371273,1727501446872,-153.73,0.000372,31]
[339371274,1727501446882,-153.73,0.000372,31]
[339371275,1727501446891,-153.73,0.000372,31]
[339371276,1727501446900,-153.73,0.000372,31]
[339371277,1727501446909,-153.73,0.000372,31]
[339371278,1727501446919,-4917.88329089,0.00037245,2]
[339371279,1727501446929,-321.3697751,0.0003725,45]
[339371280,1727501446938,-321.3697751,0.0003726,60]
[339371281,1727501446948,-321.3697751,0.0003727,60]
[339371282,1727501446958,-321.3697751,0.0003727,60]
[339371283,1727501446968,-166.112994,0.00037276,2]
[339371284,1727501446977,-321.3697751,0.0003728,60]
[339371285,1727501446987,-321.3697751,0.0003729,60]
[339371286,1727501446996,-321.3697751,0.000373,60]
[339371287,1727501447005,-321.3697751,0.0003731,120]
[339371288,1727501447014,-321.3697751,0.0003732,120]
[339371289,1727501447024,-321.3697751,0.0003733,120]
[339371290,1727501447033,-1363.93192577,0.0003734,2]
[339371291,1727501447042,-236.33,0.00037341,3]
[339371292,1727501447051,-500.0,0.00037348,15]
[339371293,1727501447061,-170.25791705,0.00037348,15]
[339371294,1727501447070,-236.74551325,0.00037348,15]
[339371295,1727501447079,-331.13476378,0.00037348,15]
[339371296,1727501447088,-500.0,0.00037348,15]
[339371297,1727501447097,-500.0,0.00037348,15]
[339371298,1727501447106,-422.38401288,0.00037348,15]
[339371299,1727501447117,-159.19238306,0.00037348,15]
[339371300,1727501447128,-500.0,0.00037348,7]
[339371301,1727501447138,-612.13025512,0.00037348,15]
[339371302,1727501447150,-500.0,0.00037348,7]
[339371303,1727501447159,-500.0,0.00037348,7]
[339371304,1727501447168,-604.07489714,0.00037348,7]
[339371305,1727501447179,-188.87092712,0.00037349,60]
[339371306,1727501447189,-139869.79753024,0.00037349,7]
[339371307,1727501448529,154.06,0.000266,31]
[339371308,1727501448584,154.06,0.000301,31]
[339371309,1727501448647,154.06,0.000301,31]
[339371310,1727501448801,154.06,0.000337,31]
[339371311,1727501448839,154.06,0.000337,31]
[339371312,1727501593220,3000.0,0.00021,2]
[339371313,1727501635927,265.76,0.00021,2]
[339371322,1727502194951,3000.0,0.00021,2]
[339371323,1727502433127,-2511.82314656,0.0002101,2]
[339371324,1727502441152,-488.17685344,0.0002101,2]
[339371325,1727502441175,-3000.0,0.0002102,2]
[339371326,1727502441196,-2628.22668491,0.0002103,2]
[339371327,1727502447109,-174.78984562,0.0002103,2]
[339371330,1727502545117,-196.98346947,0.0002103,2]
[339371331,1727502545145,-3000.0,0.0002104,2]
[339371332,1727502545174,-416.5930051,0.0002105,2]
[339371333,1727502546117,-2583.4069949,0.0002105,2]
[339371334,1727502546141,-300.0,0.00021059,2]
[339371335,1727502546164,-300.0,0.00021059,2]
[339371336,1727502546187,-5850.0,0.0002106,2]
[339371337,1727502546209,-161.177358,0.00027363,2]
[339371338,1727502546230,-150.0,0.00027397,5]
[339371339,1727502546253,-270.139769,0.00028604,2]
[339371340,1727502546274,-198.2369437,0.0002923,2]
[339371341,1727502546297,-165.034561,0.00031108,2]
[339371342,1727502546319,-165.034561,0.00031918,2]
[339371343,1727502546342,-165.034561,0.00032729,2]
[339371344,1727502573119,-412.2788661,0.00034682,35]
[339371345,1727502573147,-412.2788661,0.00034683,31]
[339371346,1727502573170,-412.2788661,0.00034684,28]
[339371347,1727502573193,-412.2788661,0.00034685,30]
[339371348,1727502573217,-412.2788661,0.00034686,35]
[339371349,1727502573239,-412.2788661,0.00034687,35]
[339371350,1727502573266,-412.2788661,0.00034688,35]
[339371351,1727502573288,-159.49,0.00034688,39]
[339371417,1727502643319,-268.541566,0.00034932,2]
[339371419,1727502643329,-200.0,0.00035616,2]
[339371421,1727502643339,-380.0,0.00035616,2]
[339371423,1727502643349,-366.8243206,0.0003651,45]
[339371425,1727502643358,-366.8243206,0.00036511,45]
[339371427,1727502643368,-366.8243206,0.00036512,35]
[339371429,1727502643377,-366.8243206,0.00036513,35]
[339371431,1727502643387,-366.8243206,0.00036514,35]
[339371433,1727502643396,-1297.13,0.0003699,3]
[339371435,1727502643405,-692.99911031,0.00037,2]
[339371437,1727502643415,-42747.73925969,0.00037,15]
[339371772,1727502646718,-366.8243206,0.00036509,2]
[339371774,1727502646728,-23815.2277611,0.00037,15]
[339372399,1727502713831,597.964617,0.00032672,2]
[339372400,1727502714376,597.964617,0.00033357,2]
[339372401,1727502714737,597.964617,0.00034042,2]
[339372402,1727502794627,150.0,0.00021,2]
[339372411,1727503639140,-163.552998,0.00034377,2]
[339372412,1727503639162,-875.1005293,0.00034922,28]
[339372413,1727503639183,-410.847389,0.00034923,28]
[339372414,1727503639204,-255.114487,0.00034932,2]
[339372415,1727503639225,-300.0,0.00034999,2]
[339372416,1727503639248,-300.0,0.00034999,2]
[339372417,1727503639270,-1044.13511367,0.00035,2]
[339372418,1727503648125,-500.8689473,0.00035,2]
[339372419,1727503650143,-1935.42212144,0.00035,2]
[339372420,1727503650169,-2968.06431377,0.00035,30]
[339372422,1727503758129,-164.268841,0.00034389,2]
[339372423,1727503758151,-164.268841,0.00034483,2]
[339372424,1727503758173,-164.268841,0.00034577,2]
[339372425,1727503758196,-164.268841,0.00034671,2]
[339372564,1727503834879,-73.74645866,0.00034766,2]
[339372575,1727503838048,-90.52238234,0.00034766,2]
[339372576,1727503838059,-164.268841,0.0003486,2]
[339372577,1727503838069,-164.268841,0.00034954,2]
[339372578,1727503838079,-860.66637182,0.00035,30]
[339372579,1727503838092,-1956.66369358,0.00035,30]
[339372580,1727503838106,-596.29,0.00035,30]
[339372581,1727503838125,-3618.28562669,0.00035,30]
[339372582,1727503838135,-166.65721779,0.00035014,120]
[339372583,1727503838146,-164.268841,0.00035049,2]
[339372584,1727503838156,-164.268841,0.00035143,2]
[339372585,1727503838166,-164.268841,0.00035237,2]
[339372586,1727503838176,-164.268841,0.00035332,2]
[339372587,1727503838186,-164.268841,0.00035426,2]
[339372588,1727503838195,-164.268841,0.0003552,2]
[339372589,1727503838204,-164.268841,0.00035614,2]
[339372590,1727503838214,-400.0,0.00035616,2]
[339372591,1727503838223,-164.268841,0.00035709,2]
[339372592,1727503838233,-164.268841,0.00035803,2]
[339372593,1727503838242,-164.268841,0.00035897,2]
[339372594,1727503838252,-164.268841,0.00035992,2]
[339372595,1727503838262,-164.268841,0.00036086,2]
[339372596,1727503838271,-164.268841,0.0003618,2]
[339372597,1727503838281,-3397.84994871,0.00036419,2]
[339372598,1727503839127,170.934266,0.00032476,30]
[339372607,1727503840139,-216.03518026,0.00036419,2]
[339372608,1727503840152,-1205.91723068,0.00036419,2]
[339372609,1727503840161,-908.75276949,0.00036461,2]
[339372619,1727503843263,-1018.62253058,0.00036461,2]
[339372620,1727503843272,-577.03290321,0.00036474,2]
[339372621,1727503843284,-419.86432885,0.00036474,2]
[339372631,1727503992625,1267.215366,0.00021,2]
[339372639,1727504592758,150.0,0.00021,2]
[339372640,1727504826185,-161.044977,0.00034568,2]
[339372641,1727504826211,-160.33867,0.00034603,2]
[339372642,1727504826234,-160.33867,0.00034767,2]
[339372643,1727504826259,-160.33867,0.00034931,2]
[339372644,1727504826280,-264.479094,0.00034932,2]
[339372645,1727504826304,-160.33867,0.00035095,2]
[339372646,1727504826327,-160.33867,0.00035259,2]
[339372647,1727504826352,-160.33867,0.00035423,2]
[339372648,1727504826375,-160.33867,0.00035587,2]
[339372649,1727504826398,-400.0,0.00035616,2]
[339372650,1727504826420,-160.33867,0.0003575,2]
[339372651,1727504826442,-151.0,0.00035908,15]
[339372652,1727504826465,-160.33867,0.00035914,2]
[339372653,1727504826486,-440.34,0.00036,30]
[339372654,1727504826509,-160.33867,0.00036078,2]
[339372655,1727504826531,-206.68126427,0.00036144,2]
[339372656,1727504840202,-4787.11997501,0.00036144,2]
[339372657,1727504840228,-160.33867,0.00036242,2]
[339372658,1727504840250,-2784.29576366,0.00036382,2]
[339372667,1727504945266,-499.99999901,0.000268,2]
[339372668,1727504950298,-168.0150828,0.00033748,2]
[339372669,1727504961359,160.33867,0.00031707,2]
[339372670,1727504975350,-161.0,0.000341,120]
[339372671,1727504975376,-4741.59458949,0.00034567,2]
[339372672,1727504975400,-5799.27415227,0.00034567,2]
[339372749,1727505032546,2899.63707614,0.00034567,2]
[339372820,1727505033632,500.0,0.00034566,7]
[339372821,1727505033663,500.0,0.00034566,7]
[339372822,1727505033690,500.0,0.00034566,7]
[339372823,1727505033728,500.0,0.00034566,7]
[339372824,1727505033757,500.0,0.00034566,7]
[339372825,1727505033791,500.0,0.00034566,7]
[339372826,1727505033824,500.0,0.00034566,7]
[339372827,1727505033865,500.0,0.00034566,7]
[339372828,1727505033897,200.0,0.00034566,7]
[339372829,1727505033925,163.89538206,0.00034566,7]
[339372830,1727505033952,500.0,0.00034566,7]
[339372831,1727505033988,500.0,0.00034566,7]
[339372832,1727505034017,500.0,0.00034566,7]
[339372833,1727505034046,500.0,0.00034566,7]
[339372834,1727505034082,500.0,0.00034566,7]
[339372835,1727505034109,500.0,0.00034566,7]
[339372836,1727505034136,500.0,0.00034566,7]
[339372837,1727505034166,500.0,0.00034566,7]
[339372838,1727505034197,500.0,0.00034566,7]
[339372839,1727505034227,500.0,0.00034566,7]
[339372840,1727505034260,500.0,0.00034566,7]
[339372841,1727505034290,500.0,0.00034566,7]
[339372842,1727505034318,500.0,0.00034566,7]
[339372843,1727505034416,500.0,0.00034566,7]
[339372865,1727505038448,-7357.98238318,0.00034567,7]
[339372873,1727505043159,-608.56212368,0.00034567,7]
[339372879,1727505058588,156.59,0.000266,31]
[339372880,1727505058641,156.59,0.000266,31]
[339372881,1727505058701,156.59,0.000266,31]
[339372882,1727505058766,156.59,0.000301,31]
[339372883,1727505058824,156.59,0.000301,31]
[339372884,1727505058883,156.59,0.000301,31]
[339372885,1727505058944,156.59,0.000301,31]
[339372886,1727505059012,156.59,0.000301,31]
[339372887,1727505059063,156.59,0.000301,31]
[339372888,1727505059125,156.59,0.000337,31]
[339372889,1727505059188,156.59,0.000337,31]
[339372890,1727505059244,156.59,0.000337,31]
[339372891,1727505059307,156.59,0.000337,31]
[339372892,1727505059368,156.59,0.000337,31]
[339372893,1727505059431,156.59,0.000337,31]
[339372894,1727505060581,400.0,0.00034566,2]
[339372895,1727505062158,2676.62538961,0.0003347,60]
[339372896,1727505062937,300.0,0.00034566,2]
[339372897,1727505151000,232.65615627,0.00031064,2]
[339372898,1727505191804,608.899268,0.00021,2]
[339372902,1727505793271,150.0,0.00021,2]
[339372903,1727505933143,-156.66,0.000266,31]
[339372904,1727505933175,-156.66,0.000266,31]
[339372905,1727505933204,-156.66,0.000301,31]
[339372906,1727505933232,-156.66,0.000301,31]
[339372907,1727505933259,-156.66,0.000301,31]
[339372908,1727505933286,-156.66,0.000301,31]
[339372909,1727505933309,-491.02554953,0.00031566,2]
[339372910,1727506031140,-483.1,0.00025508,2]
[339372911,1727506031164,-483.1,0.00026998,3]
[339372912,1727506031198,-483.1,0.00028489,4]
[339372913,1727506031220,-483.1,0.00029979,5]
[339372914,1727506031243,-483.1,0.00031469,6]
[339372915,1727506031264,-114.58489147,0.00031566,2]
[339372916,1727506031287,-158.919806,0.00032119,2]
[339372917,1727506031311,-39.74689196,0.00032238,2]
[339372918,1727506031343,-119.17291404,0.00032238,2]
[339372919,1727506031365,-472.7013723,0.00032251,2]
[339372920,1727506046753,-132.9090687,0.00032251,2]
[339372921,1727506046778,-158.919806,0.00032358,2]
[339372922,1727506046802,-158.919806,0.00032477,2]
[339372923,1727506046825,-158.919806,0.00032597,2]
[339372924,1727506046851,-158.919806,0.00032717,2]
[339372925,1727506046877,-158.919806,0.00032836,2]
[339372926,1727506046899,-605.610441,0.00032936,2]
[339372927,1727506046922,-158.919806,0.00032956,2]
[339372928,1727506046945,-483.1,0.00032959,7]
[339372929,1727506046969,-158.919806,0.00033075,2]
[339372930,1727506046992,-158.919806,0.00033195,2]
[339372931,1727506047014,-158.919806,0.00033314,2]
[339372932,1727506047038,-158.919806,0.00033434,2]
[339372933,1727506047065,-158.919806,0.00033553,2]
[339372934,1727506047088,-158.919806,0.00033673,2]
[339372935,1727506047119,-156.66,0.000337,31]
[339372936,1727506047147,-156.66,0.000337,31]
[339372937,1727506047175,-156.66,0.000337,31]
[339372938,1727506047205,-156.66,0.000337,31]
[339372939,1727506047228,-158.919806,0.00033793,2]
[339372940,1727506047251,-483.1,0.00034449,7]
[339372941,1727506047386,-500.0,0.0003445,5]
[339372942,1727506047412,-462.65504245,0.00034567,7]
[339372943,1727506047436,-500.0,0.00034567,7]
[339372944,1727506047458,-500.0,0.00034567,7]
[339372945,1727506047480,-500.0,0.00034567,7]
[339372946,1727506047504,-500.0,0.00034567,7]
[339372947,1727506047527,-500.0,0.00034567,7]
[339372948,1727506047550,-500.0,0.00034567,7]
[339372949,1727506047573,-500.0,0.00034567,7]
[339372950,1727506047597,-500.0,0.00034567,7]
[339372951,1727506047618,-500.0,0.00034567,7]
[339372952,1727506047641,-194.38372924,0.00034567,7]
[339372953,1727506049142,-305.61627076,0.00034567,7]
[339372954,1727506049164,-373.06053286,0.00034567,7]
[339372955,1727506049188,-70.10962186,0.00034567,7]
[339372956,1727506150138,-500.0,0.0003445,5]
[339372957,1727506150160,-1686.45338757,0.00034468,2]
[339372958,1727506169859,196.43896982,0.00034468,2]
[339372959,1727506224157,1000.0,0.00023,2]
[339372976,1727506232901,-170.488,0.00034568,39]
[339372977,1727506232910,-156.368803,0.00034568,14]
[339372978,1727506232920,-151.473814,0.00034568,14]
[339372979,1727506232930,-151.0,0.00034568,14]
[339372980,1727506232941,-151.0,0.00034568,14]
[339372981,1727506232950,-151.0,0.00034568,14]
[339372982,1727506232961,-151.0,0.00034568,14]
[339372983,1727506232971,-151.0,0.00034568,14]
[339372984,1727506232980,-190.504285,0.00034568,14]
[339372985,1727506232990,-220.048631,0.00034568,14]
[339372986,1727506233000,-220.048631,0.00034568,14]
[339372987,1727506233010,-151.0,0.00034568,14]
[339372988,1727506233019,-151.0,0.00034568,14]
[339372989,1727506233029,-151.0,0.00034568,14]
[339372990,1727506233039,-151.0,0.00034568,14]
[339372991,1727506233048,-151.0,0.00034568,14]
[339372992,1727506233059,-270.962077,0.00034568,14]
[339372993,1727506233072,-270.962077,0.00034568,14]
[339372994,1727506233082,-9.63807816,0.00034568,7]
[339372995,1727506233093,-6221.95518863,0.00034568,7]
[339373035,1727506239370,-2573.59419624,0.00034568,7]
[339373036,1727506239382,-889.2,0.00034568,7]
[339373037,1727506239419,-65.76380959,0.00034568,7]
[339373038,1727506239430,-999.29199992,0.00034568,7]
[339373039,1727506239442,-446.00028226,0.00034568,7]
[339373040,1727506239451,-53.99971774,0.00034568,14]
[339373082,1727506243840,-97.00028226,0.00034568,14]
[339373083,1727506243855,-265.388906,0.00034932,2]
[339373084,1727506243867,-173.05815683,0.00034998,5]
[339373109,1727506308980,201.3,0.00034473,7]
[339373110,1727506309130,201.3,0.00032987,7]
[339373111,1727506309277,201.3,0.00031502,6]
[339373112,1727506309434,106.34093207,0.00030016,5]
[339373113,1727506309460,94.95906793,0.00030016,5]
[339373114,1727506309577,201.3,0.00028531,4]
[339373115,1727506309729,201.3,0.00027045,3]
[339373116,1727506309872,201.3,0.0002556,2]
[339373117,1727506312876,161.044977,0.00033705,2]
[339373120,1727506397702,3000.0,0.00021,2]
[339373121,1727506651377,1355.02171415,0.0002098,2]
[339373122,1727506665023,284.4092275,0.00020056,2]
[339373124,1727506861381,1185.64399982,0.0002098,2]
[339373125,1727506861414,161.937216,0.0002021,2]
[339373126,1727506861625,161.937216,0.00020737,2]
[339373128,1727506878991,520.81426202,0.00021,2]
[339373129,1727506993592,3000.0,0.00021,2]
[339373130,1727507091588,1037.43849986,0.00020973,2]
[339373131,1727507093965,597.964618,0.00020058,2]
[339373132,1727507094313,597.964618,0.00020743,2]
[339373134,1727507139157,-2008.4834609,0.0002101,2]
[339373135,1727507219700,416.6514096,0.0002098,2]
[339373136,1727507225126,-974.87864255,0.0002101,2]
[339373138,1727507233110,-16.63789655,0.0002101,2]
[339373139,1727507233138,-2182.53821097,0.0002102,2]
[339373140,1727507249093,-181.55839886,0.0002102,2]
[339373141,1727507253145,-635.90339017,0.0002102,2]
[339373142,1727507253167,-2796.26478805,0.0002103,2]
[339373143,1727507326857,907.75868736,0.0002097,2]
[339373144,1727507349199,-203.73521195,0.0002103,2]
[339373145,1727507349223,-30.75663384,0.0002104,2]
[339373146,1727507351196,-2969.24336616,0.0002104,2]
[339373147,1727507351219,-3000.0,0.0002105,2]
[339373148,1727507351241,-300.0,0.00021059,2]
[339373149,1727507351264,-300.0,0.00021059,2]
[339373150,1727507351287,-3000.0,0.0002106,2]
[339373151,1727507351308,-241.95161085,0.00021069,2]
[339373152,1727507351331,-500.0,0.00021069,2]
[339373153,1727507351352,-500.0,0.00021069,2]
[339373154,1727507351373,-571.28764464,0.00021069,2]
[339373155,1727507351397,-255.30059606,0.00021069,2]
[339373156,1727507351418,-500.0,0.00021069,2]
[339373157,1727507351440,-206.38674928,0.00021069,2]
[339373158,1727507351462,-500.0,0.00021069,2]
[339373159,1727507351482,-500.0,0.00021069,2]
[339373160,1727507351503,-500.0,0.00021069,2]
[339373161,1727507351525,-500.0,0.00021069,2]
[339373162,1727507351546,-500.0,0.00021069,2]